fUST/lending_fUST_20260420
["ID","MTS","AMOUNT","RATE_DAILY","PERIOD"]
[420870588,1776682232796,-500.0,0.00013698,2]
[420870590,1776682232807,-500.0,0.00013698,2]
[420870592,1776682232818,-475.95693141,0.00013698,2]
[420870594,1776682232833,-24.04306859,0.00013698,2]
[420870596,1776682232843,-181.38542943,0.00013698,2]
[420870598,1776682232854,-315.15163677,0.00013698,2]
[420870733,1776682238627,-210.22836323,0.00013698,2]
[420870734,1776682238637,-725.54171773,0.00013698,2]
[420870735,1776682238647,-1632.46886489,0.00013698,2]
[420870736,1776682238655,-500.0,0.00013698,2]
[420870737,1776682238665,-2902.16687091,0.00013698,2]
[420870738,1776682238674,-500.0,0.00013698,2]
[420870739,1776682238683,-1000.0,0.00013698,2]
[420870740,1776682238693,-889.82,0.00013698,2]
[420870741,1776682238702,-500.0,0.00013698,2]
[420870742,1776682238711,-500.0,0.00013698,2]
[420870743,1776682238721,-500.0,0.00013698,2]
[420870744,1776682238730,-1435.25,0.00013698,2]
[420870745,1776682238739,-500.0,0.00013698,2]
[420870746,1776682238748,-500.0,0.00013698,2]
[420870747,1776682238758,-500.0,0.00013698,2]
[420870748,1776682238767,-500.0,0.00013698,2]
[420870749,1776682238776,-727.31,0.00013698,2]
[420870750,1776682238786,-500.0,0.00013698,2]
[420870751,1776682238795,-223.7956551,0.00013698,2]
[420870752,1776682238804,-500.0,0.00013698,2]
[420870753,1776682238814,-500.0,0.00013698,2]
[420870754,1776682238823,-500.0,0.00013698,2]
[420870755,1776682238832,-500.0,0.00013698,2]
[420870756,1776682238841,-500.0,0.00013698,2]
[420870757,1776682238851,-1792.05,0.00013698,2]
[420870758,1776682238860,-225.01052625,0.00013698,2]
[420870759,1776682238869,-500.0,0.00013698,2]
[420870760,1776682238879,-627.45,0.00013698,2]
[420870761,1776682238888,-500.0,0.00013698,2]
[420870762,1776682238897,-500.0,0.00013698,2]
[420870763,1776682238908,-1316.26,0.00013698,2]
[420870764,1776682238917,-500.0,0.00013698,2]
[420870765,1776682238926,-730.06,0.00013698,2]
[420870766,1776682238936,-733.22,0.00013698,2]
[420870767,1776682238945,-980.7,0.00013698,2]
[420870768,1776682238955,-933.61,0.00013698,2]
[420870769,1776682238964,-500.0,0.00013698,2]
[420870770,1776682238973,-1122.29,0.00013698,2]
[420870771,1776682238983,-665.6,0.00013698,2]
[420870772,1776682238992,-500.0,0.00013698,2]
[420870773,1776682239001,-500.0,0.00013698,2]
[420870774,1776682239010,-500.0,0.00013698,2]
[420870775,1776682239019,-500.0,0.00013698,2]
[420870776,1776682239029,-500.0,0.00013698,2]
[420870777,1776682239039,-500.0,0.00013698,2]
[420870778,1776682239048,-500.0,0.00013698,2]
[420870779,1776682239057,-1289.73,0.00013698,2]
[420870780,1776682239067,-500.0,0.00013698,2]
[420870781,1776682239076,-274.69394177,0.00013698,2]
[420870782,1776682239089,-298.06605823,0.00013698,2]
[420870783,1776682239098,-500.0,0.00013698,2]
[420870784,1776682239108,-1045.3,0.00013698,2]
[420870785,1776682239117,-229.45012447,0.00013698,2]
[420870786,1776682239127,-500.0,0.00013698,2]
[420870787,1776682239136,-1077.31,0.00013698,2]
[420870788,1776682239146,-2322.71,0.00013698,2]
[420870789,1776682239155,-500.0,0.00013698,2]
[420870790,1776682239165,-500.0,0.00013698,2]
[420870791,1776682239174,-575.98,0.00013698,2]
[420870792,1776682239183,-500.0,0.00013698,2]
[420870793,1776682239193,-693.46,0.00013698,2]
[420870794,1776682239202,-403.37398001,0.00013698,2]
[420870795,1776682239214,-1134.089456,0.00013698,2]
[420870796,1776682239232,-2997.17229979,0.00013698,2]
[420870797,1776682239241,-871.03,0.00013698,2]
[420870798,1776682239251,-1200.11,0.00013698,2]
[420870799,1776682239260,-500.0,0.00013698,2]
[420870800,1776682239270,-647.56,0.00013698,2]
[420870801,1776682239279,-4151.85,0.00013698,2]
[420870802,1776682239288,-1024.84,0.00013698,2]
[420870803,1776682239296,-1382.47,0.00013698,2]
[420870804,1776682239305,-500.0,0.00013698,2]
[420870805,1776682239314,-500.0,0.00013698,2]
[420870806,1776682239323,-165.31054816,0.00013698,2]
[420870807,1776682239332,-500.0,0.00013698,2]
[420870809,1776682239340,-500.0,0.00013698,2]
[420870811,1776682239349,-500.0,0.00013698,2]
[420870812,1776682239358,-1217.05,0.00013698,2]
[420870814,1776682239367,-500.0,0.00013698,2]
[420870816,1776682239376,-500.0,0.00013698,2]
[420870818,1776682239385,-500.0,0.00013698,2]
[420870819,1776682239394,-549.63,0.00013698,2]
[420870821,1776682239404,-500.0,0.00013698,2]
[420870823,1776682239412,-684.38,0.00013698,2]
[420870825,1776682239421,-500.0,0.00013698,2]
[420870827,1776682239430,-690.29,0.00013698,2]
[420870828,1776682239439,-1528.31,0.00013698,2]
[420870830,1776682239448,-565.31370083,0.00013698,2]
[420870831,1776682239458,-2365.45,0.00013698,2]
[420870832,1776682239467,-500.0,0.00013698,2]
[420870840,1776682239665,-638.82,0.00013698,2]
[420870841,1776682239675,-788.26,0.00013698,2]
[420870842,1776682239684,-1883.11,0.00013698,2]
[420870843,1776682239694,-500.0,0.00013698,2]
[420870844,1776682239703,-730.35,0.00013698,2]
[420870845,1776682239712,-938.3,0.00013698,2]
[420870846,1776682239721,-1887.3,0.00013698,2]
[420870847,1776682239731,-500.0,0.00013698,2]
[420870848,1776682239739,-500.0,0.00013698,2]
[420870849,1776682239748,-3294.80804872,0.00013698,2]
[420870850,1776682239758,-585.12,0.00013698,2]
[420870851,1776682239767,-591.74,0.00013698,2]
[420870852,1776682239777,-1735.21,0.00013698,2]
[420870853,1776682239786,-507.46,0.00013698,2]
[420870854,1776682239795,-588.84,0.00013698,2]
[420870855,1776682239804,-500.0,0.00013698,2]
[420870856,1776682239813,-500.0,0.00013698,2]
[420870857,1776682239822,-500.0,0.00013698,2]
[420870858,1776682239831,-500.0,0.00013698,2]
[420870859,1776682239840,-1189.53,0.00013698,2]
[420870860,1776682239850,-500.0,0.00013698,2]
[420870861,1776682239858,-502.57239254,0.00013698,2]
[420870862,1776682239868,-574.14,0.00013698,2]
[420870863,1776682239877,-500.0,0.00013698,2]
[420870864,1776682239886,-1277.15,0.00013698,2]
[420870865,1776682239895,-2828.46,0.00013698,2]
[420870866,1776682239904,-425.9925739,0.00013698,2]
[420870867,1776682239913,-1203.92,0.00013698,2]
[420870868,1776682239922,-3088.63,0.00013698,2]
[420870869,1776682239932,-500.0,0.00013698,2]
[420870870,1776682239942,-500.0,0.00013698,2]
[420870871,1776682239952,-500.0,0.00013698,2]
[420870872,1776682239961,-1140.08,0.00013698,2]
[420870873,1776682239971,-500.0,0.00013698,2]
[420870875,1776682239982,-1269.73,0.00013698,2]
[420870876,1776682239991,-699.14,0.00013698,2]
[420870877,1776682240000,-1013.22,0.00013698,2]
[420870878,1776682240010,-160.0,0.00013698,2]
[420870880,1776682240020,-1317.68,0.00013698,2]
[420870882,1776682240030,-185.95202055,0.00013698,2]
[420870883,1776682240039,-220.77003667,0.00013698,2]
[420870884,1776682240049,-2959.86,0.00013698,2]
[420870885,1776682240059,-1124.14,0.00013698,2]
[420870886,1776682240068,-500.0,0.00013698,2]
[420870887,1776682240077,-500.0,0.00013698,2]
[420870888,1776682240086,-500.0,0.00013698,2]
[420870889,1776682240095,-735.58,0.00013698,2]
[420870890,1776682240104,-40899.35,0.00013698,2]
[420870891,1776682240112,-500.0,0.00013698,2]
[420870892,1776682240121,-880.28,0.00013698,2]
[420870893,1776682240130,-1233.56,0.00013698,2]
[420870894,1776682240140,-500.0,0.00013698,2]
[420870895,1776682240149,-5223.74,0.00013698,2]
[420870896,1776682240158,-500.0,0.00013698,2]
[420870897,1776682240167,-500.0,0.00013698,2]
[420870898,1776682240176,-12964.94,0.00013698,2]
[420870899,1776682240185,-500.0,0.00013698,2]
[420870900,1776682240194,-500.0,0.00013698,2]
[420870901,1776682240203,-341.56827714,0.00013698,2]
[420870902,1776682240212,-19471.73,0.00013698,2]
[420870903,1776682240221,-500.0,0.00013698,2]
[420870904,1776682240230,-8985.04,0.00013698,2]
[420870905,1776682240240,-500.0,0.00013698,2]
[420870906,1776682240250,-1078.58,0.00013698,2]
[420870907,1776682240258,-500.0,0.00013698,2]
[420870908,1776682240267,-897.59,0.00013698,2]
[420870909,1776682240277,-500.0,0.00013698,2]
[420870910,1776682240286,-14170.05,0.00013698,2]
[420870911,1776682240295,-3617.75,0.00013698,2]
[420870912,1776682240304,-281.07074421,0.00013698,2]
[420870913,1776682240313,-502.63,0.00013698,2]
[420870914,1776682240322,-500.0,0.00013698,2]
[420870915,1776682240331,-500.0,0.00013698,2]
[420870916,1776682240340,-9382.24,0.00013698,2]
[420870917,1776682240350,-4881.24,0.00013698,2]
[420870918,1776682240359,-1240.68,0.00013698,2]
[420870920,1776682240368,-1879.27,0.00013698,2]
[420870921,1776682240377,-500.0,0.00013698,2]
[420870922,1776682240386,-8541.38,0.00013698,2]
[420870923,1776682240395,-500.0,0.00013698,2]
[420870924,1776682240404,-837.71,0.00013698,2]
[420870925,1776682240413,-209.02582396,0.00013698,2]
[420870927,1776682240422,-1138.22,0.00013698,2]
[420870929,1776682240431,-12647.1,0.00013698,2]
[420870930,1776682240440,-14690.03,0.00013698,2]
[420870931,1776682240449,-3361.0,0.00013698,2]
[420870932,1776682240458,-1422.77,0.00013698,2]
[420870933,1776682240466,-500.0,0.00013698,2]
[420870934,1776682240476,-4260.3,0.00013698,2]
[420870935,1776682240485,-500.0,0.00013698,2]
[420870936,1776682240494,-500.0,0.00013698,2]
[420870937,1776682240503,-587.95,0.00013698,2]
[420870938,1776682240513,-500.0,0.00013698,2]
[420870939,1776682240522,-500.0,0.00013698,2]
[420870940,1776682240532,-1268.22,0.00013698,2]
[420870941,1776682240541,-500.0,0.00013698,2]
[420870942,1776682240550,-500.0,0.00013698,2]
[420870943,1776682240559,-500.0,0.00013698,2]
[420870944,1776682240568,-500.0,0.00013698,2]
[420870945,1776682240577,-500.0,0.00013698,2]
[420870946,1776682240586,-500.0,0.00013698,2]
[420870947,1776682240595,-500.0,0.00013698,2]
[420870948,1776682240604,-500.0,0.00013698,2]
[420870949,1776682240614,-500.0,0.00013698,2]
[420870950,1776682240623,-531.96,0.00013698,2]
[420870951,1776682240632,-773.42,0.00013698,2]
[420870952,1776682240641,-6529.87545955,0.00013698,2]
[420870953,1776682240650,-7078.0,0.00013698,2]
[420870954,1776682240659,-1567.4,0.00013698,2]
[420870955,1776682240668,-590.22,0.00013698,2]
[420870956,1776682240677,-3442.5053634,0.00013698,2]
[420870957,1776682240905,-1559.9152485,0.00013698,2]
[420870958,1776682241207,-2326.62748289,0.00013698,2]
[420870960,1776682241755,-27.22795247,0.00013698,2]
[420870961,1776682241766,-484.0,0.00013698,2]
[420870981,1776682243365,-1038.72210886,0.00013698,2]
[420870982,1776682243375,-501.9,0.00013698,2]
[420870983,1776682243385,-902.15,0.00013698,2]
[420870984,1776682243394,-500.0,0.00013698,2]
[420870985,1776682243403,-405.70459111,0.00013698,2]
[420870986,1776682243412,-913.77,0.00013698,2]
[420870987,1776682243422,-530.1,0.00013698,2]
[420870988,1776682243431,-500.0,0.00013698,2]
[420870989,1776682243440,-500.0,0.00013698,2]
[420870990,1776682243449,-500.0,0.00013698,2]
[420870991,1776682243458,-4247.05,0.00013698,2]
[420870992,1776682243467,-721.51261624,0.00013698,2]
[420870993,1776682243553,-489.29738376,0.00013698,2]
[420870994,1776682243562,-76.15261624,0.00013698,2]
[420870995,1776682243573,-423.84738376,0.00013698,2]
[420870996,1776682243582,-19.15261624,0.00013698,2]
[420870997,1776682243593,-695.07738376,0.00013698,2]
[420870998,1776682243602,-500.0,0.00013698,2]
[420870999,1776682243611,-687.84,0.00013698,2]
[420871000,1776682243619,-277.08261624,0.00013698,2]
[420871022,1776682246426,-222.91738376,0.00013698,2]
[420871023,1776682246436,-807.74,0.00013698,2]
[420871024,1776682246445,-3942.11140724,0.00013698,2]
[420871025,1776682246456,-2247.70859276,0.00013698,2]
[420871026,1776682246466,-6442.91,0.00013698,2]
[420871027,1776682246475,-500.0,0.00013698,2]
[420871028,1776682246484,-500.0,0.00013698,2]
[420871029,1776682246494,-2057.16,0.00013698,2]
[420871031,1776682246503,-2685.83,0.00013698,2]
[420871033,1776682246512,-500.0,0.00013698,2]
[420871034,1776682246522,-5808.89,0.00013698,2]
[420871035,1776682246538,-1900.16,0.00013698,2]
[420871036,1776682246547,-580.0057378,0.00013698,2]
[420871037,1776682246584,-340.6542622,0.00013698,2]
[420871038,1776682246594,-500.0,0.00013698,2]
[420871039,1776682246603,-513.83,0.00013698,2]
[420871040,1776682246613,-76.9757378,0.00013698,2]
[420871168,1776682862355,-318.02932222,5e-05,2]
[420871169,1776682864150,4406.88818872,4.95e-05,2]
[420871172,1776682891210,-917.65121269,4.9e-05,2]
[420871173,1776682891233,-592.34149503,4.95e-05,2]
[420871175,1776682921167,152.0,0.00011311,7]
[420871177,1776682927331,-14.02932222,0.00011311,7]
[420871200,1776683038779,-137.97067778,0.00011311,7]
[420871201,1776683038803,-1828.76999464,0.00012318,2]
[420871202,1776683038827,-516.0,0.00012318,2]
[420871203,1776683038849,-150.0,0.00012443,2]
[420871204,1776683038875,-558.97441709,0.00013597,2]
[420871205,1776683038902,-6808.28491049,0.00013598,2]
[420871207,1776683045411,-500.0,0.00013598,2]
[420871244,1776683165158,-151.0,0.00013187,2]
[420871245,1776683165189,-5000.0,0.00013459,2]
[420871246,1776683165214,-398.92367697,0.00013496,2]
[420871247,1776683165240,-4450.07632303,0.00013595,2]
[420871323,1776683432371,-359.8667128,0.0001,30]
[420871325,1776683432383,-770.72520287,0.0001,30]
[420871372,1776683438593,-27.43853695,0.0001,30]
[420871373,1776683438604,-150.0,0.00011301,2]
[420871374,1776683438614,-776.97232853,0.00012602,2]
[420871375,1776683438624,-152.0,0.00012702,7]
[420871376,1776683438634,-152.0,0.00012702,7]
[420871377,1776683438644,-230.1454793,0.00012729,2]
[420871378,1776683438700,-72.72417097,0.00012729,2]
[420871379,1776683438710,-324.7054616,0.00012857,2]
[420871380,1776683438720,-177.0,0.00013301,2]
[420871381,1776683438730,-787.22939541,0.000135,2]
[420871382,1776683438755,-1571.94947176,0.000135,2]
[420871383,1776683438767,-2603.9444298,0.000135,2]
[420871384,1776683438779,-1421.21889047,0.000135,2]
[420871465,1776683440857,-849.631403,0.000135,2]
[420871486,1776683441036,-7498.0,0.000135,2]
[420871662,1776683443572,-2543.62117972,0.000135,2]
[420871663,1776683443615,-1602.57427511,0.000135,2]
[420871675,1776683446648,-7832.62139307,0.000135,2]
[420871687,1776683899796,-586.10813099,0.00013003,2]
[420871688,1776683899820,-506.0,0.00013003,2]
[420871689,1776683899844,-150.0,0.000132,2]
[420871690,1776683899869,-152.0,0.00013279,7]
[420871691,1776683899895,-152.0,0.00013279,7]
[420871692,1776683899921,-152.0,0.00013279,7]
[420871693,1776683899945,-152.0,0.00013279,7]
[420871694,1776683899970,-152.0,0.00013279,7]
[420871695,1776683899995,-152.0,0.00013279,7]
[420871696,1776683900019,-152.0,0.00013279,7]
[420871697,1776683900044,-152.0,0.00013279,7]
[420871698,1776683900068,-152.0,0.00013279,7]
[420871699,1776683900091,-349.05821734,0.00013395,2]
[420871700,1776683900113,-151.5,0.00013424,2]
[420871701,1776683900135,-151.5,0.00013424,2]
[420871702,1776683900156,-202.89160096,0.00013424,2]
[420871703,1776683900177,-500.0,0.00013473,2]
[420871704,1776683900200,-500.0,0.00013473,2]
[420871705,1776683900223,-500.0,0.00013473,2]
[420871706,1776683900247,-537.6845,0.00013487,2]
[420871707,1776683900270,-2150.738,0.00013487,2]
[420871708,1776683900292,-300.0,0.00013494,2]
[420871709,1776683900315,-1200.0,0.00013494,2]
[420871710,1776683900340,-391.28209196,0.00013494,2]
[420871711,1776683900360,-200.0,0.00013495,2]
[420871712,1776683900379,-200.0,0.00013495,2]
[420871713,1776683900400,-55.23745875,0.00013495,2]
[420871714,1776683901761,-144.76254125,0.00013495,2]
[420871715,1776683901783,-200.00544531,0.00013495,2]
[420871716,1776683901808,-9655.23201344,0.00013495,2]
[420871718,1776683996781,-500.0,0.00013424,2]
[420871719,1776683996805,-500.0,0.00013424,2]
[420871720,1776683996827,-500.0,0.00013424,2]
[420871721,1776683996850,-500.0,0.00013424,2]
[420871722,1776683996873,-500.0,0.00013424,2]
[420871723,1776683996898,-500.0,0.00013424,2]
[420871724,1776683996921,-500.0,0.00013424,2]
[420871725,1776683996944,-500.0,0.00013424,2]
[420871726,1776683996967,-407.82316148,0.00013424,2]
[420871727,1776683996991,-592.17683852,0.00013495,2]
[420871940,1776684638896,-542.499,0.00013127,2]
[420871941,1776684638906,-150.0,0.00013127,2]
[420871942,1776684638916,-189.2720382,0.00013127,2]
[420871943,1776684638925,-300.0,0.00013194,2]
[420871944,1776684638935,-273.89746437,0.00013194,2]
[420871945,1776684638944,-78596.04989272,0.00013195,2]
[420871949,1776684639060,-12058.0,0.00013195,2]
[420871951,1776684639071,-3631.73160119,0.00013195,2]
[420871956,1776684639117,-160301.54325276,0.00013195,2]
[420872018,1776684641569,-0.01124875,0.00013195,2]
[420872035,1776684644277,-599.88947923,0.00013195,2]
[420872042,1776684647151,-4553.02931013,0.00013195,2]
[420872043,1776684647206,-1023.7527171,0.00013195,2]
[420872082,1776685831695,-1256.78638887,8.952e-05,2]
[420872083,1776685831750,-476.01484032,8.952e-05,2]
[420872084,1776685831759,-141.63317705,9.042e-05,2]
[420872085,1776685831804,-1150.42333581,9.042e-05,2]
[420872086,1776685831813,-459.0,9.133e-05,2]
[420872087,1776685831823,-151.0,9.318e-05,2]
[420872089,1776685831832,-150.0,9.318e-05,2]
[420872090,1776685831841,-151.0,9.864e-05,2]
[420872092,1776685831850,-609.93524599,0.0001,2]
[420872094,1776685831860,-174.9085411,0.00010197,2]
[420872096,1776685831869,-177.0,0.00011318,2]
[420872098,1776685831879,-250.0,0.0001139,2]
[420872100,1776685831887,-1200.0,0.00011493,2]
[420872102,1776685831897,-300.0,0.00011494,2]
[420872104,1776685831906,-300.0,0.00011494,2]
[420872105,1776685831915,-300.0,0.00011494,2]
[420872106,1776685831925,-300.0,0.00011494,2]
[420872107,1776685831934,-300.0,0.00011495,2]
[420872108,1776685831943,-1200.0,0.00011495,2]
[420872109,1776685831955,-4892.60715103,0.00011495,2]
[420872110,1776685831965,-433.999,0.00011499,2]
[420872111,1776685831974,-713.68757059,0.000115,6]
[420872112,1776685831986,-2751.07633631,0.000115,6]
[420872213,1776685838102,-26353.84606423,0.000115,6]
[420872214,1776685838117,-151.0,0.00012579,2]
[420872215,1776685838131,-191.72822506,0.00012921,2]
[420872216,1776685838143,-500.0,0.00012921,2]
[420872217,1776685838154,-335.14799882,0.00012921,2]
[420872218,1776685838165,-500.0,0.00012921,2]
[420872219,1776685838175,-92424.25808451,0.00012922,2]
[420872220,1776685838210,-1056.93707012,0.00012922,2]
[420872235,1776685840277,-4415.82707175,0.00012922,2]
[420872321,1776685845689,-1352.99176546,0.00012922,2]
[420872322,1776685846061,-22309.32889199,0.00012922,2]
[420872323,1776685846088,-250891.40457688,0.00012922,2]
[420872324,1776685846098,-500.0,0.00012973,2]
[420872326,1776685846108,-220.02166709,0.00012973,2]
[420872327,1776685846118,-507.13510069,0.00012973,2]
[420872329,1776685846129,-500.0,0.00012973,2]
[420872331,1776685846138,-500.0,0.00012973,2]
[420872333,1776685846148,-276.81113179,0.00012973,2]
[420872336,1776685846159,-500.0,0.00012973,2]
[420872338,1776685846168,-500.0,0.00012973,2]
[420872340,1776685846178,-25551.51853986,0.00012993,2]
[420872363,1776685894299,500.7,4.008e-05,2]
[420872364,1776686438094,-4891.12626546,5.702e-05,2]
[420872365,1776686438117,-2395.07942354,5.76e-05,2]
[420872366,1776686438143,-150.0,5.848e-05,2]
[420872367,1776686438165,-166.73591,5.937e-05,2]
[420872368,1776686438188,-250.0,7.8e-05,2]
[420872369,1776686438210,-1200.0,7.847e-05,2]
[420872370,1776686438232,-177.0,7.848e-05,2]
[420872371,1776686438255,-770.058401,8.631e-05,2]
[420872372,1776686448259,-909.941599,8.631e-05,2]
[420872373,1776686448284,-300.0,8.803e-05,2]
[420872374,1776686448309,-300.0,8.803e-05,2]
[420872375,1776686448333,-300.0,8.803e-05,2]
[420872376,1776686448356,-300.0,8.803e-05,2]
[420872377,1776686448380,-300.0,8.803e-05,2]
[420872378,1776686448405,-300.0,8.803e-05,2]
[420872379,1776686448433,-300.0,8.803e-05,2]
[420872380,1776686448457,-300.0,8.803e-05,2]
[420872381,1776686448481,-300.0,8.803e-05,2]
[420872382,1776686448504,-300.0,8.803e-05,2]
[420872383,1776686448529,-300.0,8.803e-05,2]
[420872384,1776686448553,-300.0,8.803e-05,2]
[420872385,1776686448578,-300.0,8.803e-05,2]
[420872386,1776686448602,-300.0,8.803e-05,2]
[420872387,1776686448627,-300.0,8.803e-05,2]
[420872388,1776686448653,-600.0,8.978e-05,2]
[420872389,1776686448675,-2351.0,9.494e-05,2]
[420872390,1776686448698,-204.0,9.848e-05,2]
[420872391,1776686448723,-720.0,9.876e-05,2]
[420872392,1776686448743,-194.36544771,0.0001,2]
[420872393,1776686463081,-520.69295329,0.00010863,2]
[420872394,1776686500595,-231.0,0.00011848,2]
[420872395,1776686500623,-209.77281679,0.00011864,2]
[420872396,1776686517351,-151.0,0.00012085,2]
[420872397,1776686517379,-300.0,0.00012526,2]
[420872398,1776686517406,-300.0,0.00012526,2]
[420872399,1776686517433,-300.0,0.00012526,2]
[420872400,1776686517462,-300.0,0.00012526,2]
[420872401,1776686517489,-300.0,0.00012526,2]
[420872402,1776686517516,-330.0,0.00012527,2]
[420872403,1776686517543,-1208.25229198,0.00012793,2]
[420872404,1776686517569,-879.41614401,0.00012793,2]
[420872405,1776686517600,-107.73840711,0.00012861,7]
[420872406,1776686546836,-44.26159289,0.00012861,7]
[420872407,1776686546866,-152.0,0.00012861,7]
[420872408,1776686546895,-152.0,0.00012861,7]
[420872409,1776686546924,-152.0,0.00012861,7]
[420872410,1776686546952,-300.0,0.00012872,2]
[420872411,1776686546978,-500.0,0.00012873,2]
[420872412,1776686547004,-500.0,0.00012873,2]
[420872413,1776686547031,-419.28906598,0.00012873,2]
[420872414,1776686576078,-81.04207952,0.00012873,2]
[420872415,1776686576109,-500.0,0.00012873,2]
[420872416,1776686576139,-424.43542087,0.00012873,2]
[420872417,1776686592174,-10000.0,0.00012793,2]
[420872418,1776686595926,-10000.0,0.00012793,2]
[420872419,1776686605297,-855.47750039,0.00012793,2]
[420872420,1776686611722,-800.0,0.00012793,2]
[420872457,1776687038218,-5000.0,0.00012041,2]
[420872458,1776687038228,-5000.0,0.00012163,2]
[420872459,1776687038239,-592.0,0.00012163,2]
[420872460,1776687038249,-300.0,0.00012285,2]
[420872461,1776687038258,-1200.0,0.00012285,2]
[420872462,1776687038268,-300.0,0.00012286,2]
[420872463,1776687038278,-300.0,0.00012286,2]
[420872464,1776687038288,-300.0,0.00012286,2]
[420872465,1776687038297,-150.0,0.00012349,2]
[420872466,1776687038306,-300.0,0.0001241,2]
[420872467,1776687038316,-1200.0,0.0001241,2]
[420872468,1776687038325,-152.0,0.00012659,7]
[420872469,1776687038334,-152.0,0.00012659,7]
[420872470,1776687038344,-152.0,0.00012659,7]
[420872471,1776687038353,-152.0,0.00012659,7]
[420872472,1776687038362,-152.0,0.00012659,7]
[420872473,1776687038371,-500.0,0.00012773,2]
[420872474,1776687038381,-500.0,0.00012773,2]
[420872475,1776687038390,-500.0,0.00012773,2]
[420872476,1776687038399,-500.0,0.00012773,2]
[420872477,1776687038408,-500.0,0.00012773,2]
[420872478,1776687038417,-500.0,0.00012773,2]
[420872479,1776687038427,-500.0,0.00012773,2]
[420872480,1776687038436,-462.69511885,0.00012792,2]
[420872481,1776687038445,-500.0,0.00012792,2]
[420872482,1776687038454,-500.0,0.00012792,2]
[420872483,1776687038464,-500.0,0.00012792,2]
[420872485,1776687038473,-500.0,0.00012792,2]
[420872487,1776687038482,-643.58501109,0.00012792,2]
[420872488,1776687038492,-500.0,0.00012792,2]
[420872489,1776687038501,-500.0,0.00012792,2]
[420872491,1776687038510,-500.0,0.00012792,2]
[420872492,1776687038520,-500.0,0.00012792,2]
[420872494,1776687038529,-500.0,0.00012792,2]
[420872495,1776687038538,-500.0,0.00012792,2]
[420872497,1776687038548,-500.0,0.00012792,2]
[420872499,1776687038557,-500.0,0.00012792,2]
[420872501,1776687038566,-500.0,0.00012792,2]
[420872503,1776687038576,-37620.01161879,0.00012793,2]
[420872505,1776687038620,-716790.51292732,0.00012793,2]
[420872506,1776687038629,-306126.07039031,0.00012793,2]
[420872507,1776687038638,-152.0,0.00012795,7]
[420872508,1776687038647,-152.0,0.00012795,7]
[420872509,1776687038656,-152.0,0.00012795,7]
[420872510,1776687038666,-152.0,0.00012795,7]
[420872511,1776687038676,-152.0,0.00012795,7]
[420872512,1776687038685,-500.0,0.00012873,2]
[420872513,1776687038695,-2543.0991022,0.00012881,2]
[420872514,1776687038705,-277.759,0.00012892,2]
[420872515,1776687038714,-500.0,0.00012921,2]
[420872516,1776687038723,-500.0,0.00012921,3]
[420872517,1776687038733,-500.0,0.00012921,4]
[420872518,1776687038742,-500.0,0.00012921,5]
[420872519,1776687038752,-500.0,0.00012921,6]
[420872520,1776687038762,-500.0,0.00012921,7]
[420872521,1776687038772,-500.0,0.00012921,8]
[420872522,1776687038781,-500.0,0.00012921,2]
[420872523,1776687038791,-500.0,0.00012947,2]
[420872524,1776687038800,-1000.0,0.00012993,2]
[420872525,1776687038810,-1000.0,0.00012993,2]